bitfinex-derivatives/quotes_SOLF0:USTF0_20250114
["timestamp","ask_amount","ask_price","bid_price","bid_amount"]
[1736836950760,2.6793,186.72,186.68,10.61638821]
[1736836955763,2.6794,186.71,186.64,3.88679541]
[1736836956067,7.93658821,186.71,186.65,7.93658821]
[1736836957168,2.6796,186.7,186.66,2.68]
[1736836960667,7.93658821,186.71,186.65,7.93658821]
[1736836960874,10.61598821,186.71,186.67,2.6799]
[1736836963070,2.6795,186.7,186.67,2.6799]
[1736836963271,2.6795,186.7,186.66,2.6801]
[1736836964673,2.6795,186.7,186.67,2.6799]
[1736836965580,10.61598821,186.71,186.67,2.6799]
[1736836966173,10.61598821,186.71,186.67,10.61648821]
[1736836966373,2.6794,186.71,186.67,10.61648821]
[1736836966577,2.6793,186.72,186.68,2.6797]
[1736836967179,2.6793,186.72,186.69,7.93658821]
[1736836968174,2.6791,186.73,186.69,7.93658821]
[1736836968375,7.0191,186.77,186.69,7.93658821]
[1736836968569,7.93658821,186.76,186.69,7.93658821]
[1736836969366,2.6789,186.75,186.7,2.6795]
[1736836969565,7.93658821,186.74,186.64,3.88679541]
[1736836969774,7.93658821,186.72,186.66,7.93658821]
[1736836970070,7.93658821,186.7,186.66,2.68]
[1736836970470,7.93658821,186.7,186.64,6.56709541]
[1736836970471,2.6797,186.69,186.64,6.56709541]
[1736836970674,2.6797,186.69,186.64,14.50368362]
[1736836971577,2.6797,186.69,186.64,11.82338362]
[1736836971777,2.6797,186.69,186.65,2.6802]
[1736836973077,5.03283614,186.76,186.64,3.88679541]
[1736836973078,2.68,186.67,186.64,3.88679541]
[1736836973275,7.93658821,186.66,186.59,45.11079511]
[1736836973574,7.93658821,186.66,186.61,7.93658821]
[1736836973771,7.93658821,186.66,186.59,45.11079511]
[1736836973976,7.93658821,186.66,186.61,7.93658821]
[1736836974173,2.6803,186.65,186.61,10.61738821]
[1736836974572,2.6803,186.65,186.61,2.6808]
[1736836974772,2.6803,186.65,186.61,10.61738821]
[1736836975279,3.3176,186.69,186.63,7.93658821]
[1736836975477,1.6631,186.69,186.63,7.93658821]
[1736836976079,2.6799,186.68,186.64,2.6802]
[1736836977578,2.68,186.67,186.63,7.93658821]
[1736836979982,2.6802,186.66,186.61,2.6808]
[1736836980185,2.6802,186.66,186.62,7.93658821]
[1736836980779,7.93658821,186.68,186.62,7.93658821]
[1736836980984,2.6802,186.65,186.62,7.93658821]
[1736836982180,7.93658821,186.64,186.59,45.11079511]
[1736836983179,2.6807,186.62,186.59,45.11079511]
[1736836984181,7.93658821,186.64,186.59,45.11079511]
[1736836984386,1.5999,186.67,186.6,7.93658821]
[1736836984685,9.53648821,186.67,186.62,7.93658821]
[1736836985982,7.93658821,186.65,186.6,7.93658821]
[1736836986287,10.61688821,186.65,186.6,10.61748821]
[1736836990689,2.6803,186.65,186.6,10.61748821]
[1736836990891,10.61688821,186.65,186.6,10.61748821]
[1736836991091,2.6803,186.65,186.6,10.61748821]
[1736836992586,1.5999,186.67,186.62,2.6806]
[1736836992889,7.93658821,186.67,186.62,10.61718821]
[1736836993087,2.6798,186.68,186.62,7.93658821]
[1736836993392,9.59968821,186.69,186.64,7.93658821]
[1736836995092,12.27938821,186.69,186.64,10.61688821]
[1736836996201,4.3428,186.69,186.64,10.61688821]
[1736836996401,7.93658821,186.68,186.64,10.61688821]
[1736836998603,10.61648821,186.68,186.64,10.61688821]
[1736836999506,10.61648821,186.68,186.63,2.6805]
[1736837001403,2.6806,186.63,186.59,45.11079511]
[1736837010410,2.6806,186.63,186.54,3.2443]
[1736837010411,2.6813,186.58,186.53,2.6819]
[1736837010608,2.6813,186.58,186.53,10.61848821]
[1736837011305,2.6814,186.57,186.53,10.61848821]
[1736837012407,2.6814,186.57,186.52,2.6821]
[1736837012608,2.6816,186.56,186.52,2.6821]
[1736837023822,2.6816,186.56,186.51,7.93658821]
[1736837024017,2.6816,186.56,186.53,2.6819]
[1736837027517,2.6817,186.55,186.47,1.659]
[1736837027726,7.93658821,186.55,186.48,7.93658821]
[1736837028021,24.7335,186.63,186.48,7.93658821]
[1736837028220,2.6817,186.55,186.5,7.93658821]
[1736837028723,2.6817,186.55,186.51,2.6822]
[1736837029524,7.93658821,186.56,186.46,1.6785]
[1736837029721,2.6818,186.54,186.5,2.6824]
[1736837030825,10.61838821,186.54,186.5,2.6824]
[1736837031515,10.61838821,186.54,186.49,7.93658821]
[1736837031516,7.93658821,186.52,186.44,1.5457]
[1736837031825,2.6824,186.51,186.47,2.6828]
[1736837037928,2.6824,186.51,186.47,10.61938821]
[1736837039925,7.93658821,186.5,186.47,2.6828]
[1736837040131,2.6824,186.51,186.47,2.6828]
[1736837040336,7.93658821,186.51,186.47,10.61938821]
[1736837040929,2.6821,186.52,186.48,2.6826]
[1736837042229,7.93658821,186.51,186.47,7.93658821]
[1736837042533,10.61888821,186.51,186.47,10.61938821]
[1736837044733,10.61888821,186.51,186.47,7.93658821]
[1736837044932,10.61888821,186.51,186.48,2.6827]
[1736837052335,2.6823,186.51,186.48,2.6827]
[1736837052634,7.93658821,186.49,186.41,1.6319]
[1736837052826,7.93658821,186.49,186.45,2.683]
[1736837053132,7.93658821,186.49,186.41,1.6319]
[1736837053336,10.61938821,186.47,186.43,2.6833]
[1736837053732,10.61938821,186.47,186.41,7.93658821]
[1736837054331,7.93658821,186.45,186.4,3.56795862]
[1736837054524,7.93658821,186.43,186.4,6.25165862]
[1736837055127,7.93658821,186.43,186.4,3.56795862]
[1736837056134,10.62008821,186.43,186.39,2.684]
[1736837057632,7.93658821,186.43,186.39,2.684]
[1736837057833,2.6833,186.44,186.39,2.684]
[1736837058641,2.6833,186.44,186.4,2.6838]
[1736837059334,10.62008821,186.43,186.38,10.62058821]
[1736837060235,2.6837,186.42,186.38,2.684]
[1736837060437,7.93658821,186.41,186.38,2.684]
[1736837061842,10.62038821,186.41,186.36,2.6843]
[1736837062340,7.93658821,186.41,186.36,2.6843]
[1736837063142,2.6838,186.4,186.36,2.6843]
[1736837065741,10.62038821,186.4,186.36,2.6843]
[1736837068044,2.684,186.39,186.35,10.62108821]
[1736837070845,7.93658821,186.38,186.35,2.6845]
[1736837072747,7.93658821,186.38,186.36,2.6844]
[1736837072938,187.5506,186.47,186.35,7.93658821]
[1736837073144,5.44,186.46,186.39,7.93658821]
[1736837073445,7.93658821,186.44,186.39,7.93658821]
[1736837074248,10.61988821,186.44,186.4,2.6838]
[1736837077449,7.93658821,186.42,186.4,2.6838]
[1736837080650,7.93658821,186.42,186.39,2.6839]
[1736837085857,10.62018821,186.42,186.35,7.93658821]
[1736837086465,10.62018821,186.42,186.37,2.6841]
[1736837088967,2.6837,186.41,186.37,2.6841]
[1736837089161,7.93658821,186.4,186.35,2.6844]
[1736837090069,2.684,186.39,186.35,2.6844]
[1736837091263,2.684,186.39,186.34,7.93658821]
[1736837091469,2.684,186.39,186.36,2.6844]
[1736837094170,10.62038821,186.4,186.36,2.6844]
[1736837095174,2.684,186.39,186.36,2.6844]
[1736837097076,5.44,186.46,186.35,7.93658821]
[1736837097279,7.93658821,186.4,186.35,7.93658821]
[1736837098167,7.93658821,186.4,186.37,2.6842]
[1736837103274,2.6837,186.41,186.37,2.6842]
[1736837103479,10.62028821,186.41,186.37,2.6842]
[1736837104174,5.44,186.46,186.35,7.93658821]
[1736837104378,2.6834,186.43,186.39,2.6839]
[1736837104580,10.61998821,186.43,186.39,2.6839]
[1736837105382,2.6834,186.43,186.39,2.6839]
[1736837105680,10.61998821,186.43,186.39,2.6839]
[1736837109279,7.93658821,186.41,186.33,34.52749336]
[1736837109481,7.93658821,186.39,186.33,42.46408157]
[1736837109677,7.93658821,186.39,186.35,2.6844]
[1736837111688,7.93658821,186.37,186.34,2.6847]
[1736837117991,2.6841,186.38,186.34,2.6847]
[1736837118391,10.62068821,186.38,186.34,2.6847]
[1736837119793,7.93658821,186.38,186.33,34.52749336]
[1736837120094,2.6843,186.37,186.33,37.21229336]
[1736837122797,7.93658821,186.36,186.33,37.21229336]
[1736837123194,7.93658821,186.36,186.33,34.52749336]
[1736837123195,10.62108821,186.36,186.33,34.52749336]
[1736837123393,7.93658821,186.34,186.28,7.44689649]
[1736837123595,7.93658821,186.32,186.28,7.44689649]
[1736837124100,3.3354,186.35,186.29,7.93658821]
[1736837125200,6.02,186.35,186.3,2.6852]
[1736837125404,7.93658821,186.34,186.29,7.93658821]
[1736837125996,7.93658821,186.32,186.24,33.35866926]
[1736837126205,7.93658821,186.32,186.24,3.57108328]
[1736837126600,2.6849,186.33,186.28,2.6855]
[1736837126805,7.93658821,186.3,186.28,2.6855]
[1736837127610,7.93658821,186.3,186.26,2.6857]
[1736837127810,3.3354,186.35,186.26,2.6857]
[1736837127811,7.93658821,186.28,186.26,2.6857]
[1736837128203,7.93658821,186.28,186.24,3.57108328]
[1736837128204,7.93658821,186.28,186.25,2.686]
[1736837130908,1.585,186.32,186.24,3.57108328]
[1736837130909,7.93658821,186.26,186.24,3.57108328]
[1736837131609,7.93658821,186.26,186.16,33.05468598]
[1736837131610,7.93658821,186.26,186.22,2.6864]
[1736837131810,7.93658821,186.24,186.22,2.6864]
[1736837132309,7.93658821,186.24,186.17,3.57239505]
[1736837132510,7.93658821,186.2,186.18,2.687]
[1736837133012,7.93658821,186.2,186.17,3.57239505]
[1736837135314,7.93658821,186.21,186.17,11.50898326]
[1736837135813,7.93658821,186.21,186.19,2.6869]
[1736837136013,7.93658821,186.21,186.17,3.57239505]
[1736837136715,7.93658821,186.19,186.17,3.57239505]
[1736837136909,7.93658821,186.19,186.16,2.6873]
[1736837137410,7.93658821,186.19,186.14,7.93658821]
[1736837138108,7.93658821,186.17,186.13,53.95449384]
[1736837139114,7.93658821,186.17,186.14,2.6876]
[1736837140016,7.93658821,186.15,186.11,2.6879]
[1736837143119,7.93658821,186.15,186.11,7.93658821]
[1736837144320,7.93658821,186.15,186.13,2.6877]
[1736837145514,5.44,186.19,186.11,7.93658821]
[1736837145725,182.873,186.25,186.06,1.6259]
[1736837145726,4.8686,186.24,186.17,7.93658821]
[1736837145921,7.93658821,186.23,186.17,7.93658821]
[1736837146121,7.93658821,186.23,186.19,2.6867]
[1736837147019,10.62288821,186.23,186.18,2.687]
[1736837148819,7.93658821,186.21,186.18,2.687]
[1736837149320,7.93658821,186.21,186.19,2.6868]
[1736837151121,7.93658821,186.21,186.17,2.687]
[1736837151315,7.93658821,186.21,186.15,7.93658821]
[1736837151316,4.8686,186.24,186.15,7.93658821]
[1736837151516,7.93658821,186.21,186.15,7.93658821]
[1736837151819,7.93658821,186.21,186.18,2.6869]
[1736837159332,4.8686,186.24,186.15,7.93658821]
[1736837159533,7.93658821,186.21,186.19,2.6869]
[1736837159733,7.93658821,186.21,186.13,7.93658821]
[1736837159926,7.93658821,186.17,186.15,2.6873]
[1736837160728,7.93658821,186.17,186.06,1.654]
[1736837160931,7.93658821,186.14,186.09,7.93658821]
[1736837161633,7.93658821,186.14,186.08,7.93658821]
[1736837163128,7.93658821,186.14,186.11,2.6879]
[1736837164229,7.93658821,186.16,186.13,2.6876]
[1736837165032,13.37658821,186.18,186.13,2.6876]
[1736837165232,7.93658821,186.16,186.13,2.6876]
[1736837167240,8.1271,186.18,186.13,2.6876]
[1736837167441,7.93658821,186.16,186.13,2.6876]
[1736837167747,7.93658821,186.16,186.11,7.93658821]
[1736837167935,7.93658821,186.16,186.14,2.6875]
[1736837169734,13.37658821,186.18,186.15,2.6874]
[1736837169940,5.46,186.21,186.15,7.93658821]
[1736837170140,7.93658821,186.2,186.15,7.93658821]
[1736837170340,7.93658821,186.2,186.18,2.6869]
[1736837170839,7.93658821,186.2,186.15,7.93658821]
[1736837172138,7.93658821,186.2,186.17,2.6871]
[1736837174237,7.93658821,186.2,186.08,29.78758598]
[1736837174436,7.93658821,186.16,186.1,7.93658821]
[1736837174635,7.93658821,186.16,186.08,29.78758598]
[1736837174943,7.93658821,186.14,186.09,7.93658821]
[1736837177345,7.93658821,186.14,186.1,2.6881]
[1736837177541,7.93658821,186.14,186.09,7.93658821]
[1736837177946,7.93658821,186.14,186.12,2.6879]
[1736837179237,7.93658821,186.14,186.09,7.93658821]
[1736837179443,7.93658821,186.14,186.06,1.654]
[1736837179444,7.93658821,186.14,186.07,7.93658821]
[1736837179943,7.93658821,186.12,186.07,7.93658821]
[1736837181152,7.93658821,186.12,186.1,2.6881]
[1736837181849,7.93658821,186.12,186.09,2.6883]
[1736837182344,7.93658821,186.12,186.08,2.6884]
[1736837182539,7.93658821,186.12,186.05,42.51357264]
[1736837182744,4.7809,186.16,186.07,7.93658821]
[1736837182948,7.93658821,186.14,186.11,2.6879]
[1736837183148,4.7809,186.16,186.09,7.93658821]
[1736837183149,12.71748821,186.16,186.09,7.93658821]
[1736837183346,11.11478821,186.16,186.09,7.93658821]
[1736837183648,7.93658821,186.16,186.13,2.6877]
[1736837183847,7.93658821,186.18,186.11,7.93658821]
[1736837184944,7.93658821,186.18,186.15,2.6873]
[1736837187452,2.6867,186.2,186.15,2.6873]
[1736837187748,7.93658821,186.18,186.15,2.6873]
[1736837190950,10.62358821,186.18,186.15,2.6873]
[1736837191556,7.93658821,186.16,186.15,2.6873]
[1736837191955,7.93658821,186.16,186.11,7.93658821]
[1736837192160,7.93658821,186.16,186.13,2.6876]
[1736837193656,10.2583,186.22,186.11,7.93658821]
[1736837193954,7.93658821,186.18,186.15,2.6873]
[1736837195957,7.93658821,186.18,186.14,2.6875]
[1736837196147,10.62358821,186.18,186.14,2.6875]
[1736837196351,7.93658821,186.16,186.13,2.6877]
[1736837196558,7.93658821,186.14,186.08,7.93658821]
[1736837196961,7.93658821,186.14,186.1,2.688]
[1736837197958,7.93658821,186.12,186.1,2.688]
[1736837201061,7.93658821,186.14,186.11,2.688]
[1736837203257,182.873,186.21,186.1,7.93658821]
[1736837203461,7.93658821,186.16,186.1,7.93658821]
[1736837204263,7.93658821,186.16,186.12,2.6877]
[1736837208371,7.93658821,186.16,186.13,2.6876]
[1736837209571,7.93658821,186.18,186.15,2.6874]
[1736837210867,7.93658821,186.18,186.12,7.93658821]
[1736837211074,10.62358821,186.18,186.14,2.6876]
[1736837212477,7.93658821,186.16,186.1,7.93658821]
[1736837212776,10.62388821,186.16,186.11,2.6879]
[1736837215177,10.62388821,186.16,186.09,7.93658821]
[1736837215378,7.93658821,186.16,186.13,2.6877]
[1736837220178,5.44,186.2,186.11,7.93658821]
[1736837220382,7.93658821,186.18,186.15,2.6874]
[1736837220678,7.93658821,186.18,186.13,7.93658821]
[1736837220881,3.1956,186.22,186.19,2.6868]
[1736837221084,182.873,186.27,186.17,7.93658821]
[1736837221284,7.93658821,186.24,186.17,7.93658821]
[1736837222080,7.93658821,186.24,186.2,2.6866]
[1736837222284,7.93658821,186.24,186.17,7.93658821]
[1736837223375,7.93658821,186.24,186.19,2.6868]
[1736837223577,10.62268821,186.24,186.19,2.6868]
[1736837223776,7.93658821,186.22,186.19,2.6868]
[1736837225588,7.93658821,186.22,186.2,2.6867]
[1736837225985,7.93658821,186.24,186.2,2.6867]
[1736837227587,7.93658821,186.24,186.21,2.6866]
[1736837228292,10.62278821,186.24,186.2,2.6867]
[1736837228493,7.93658821,186.22,186.2,2.6867]
[1736837229193,7.93658821,186.24,186.17,7.93658821]
[1736837229392,7.93658821,186.24,186.19,7.93658821]
[1736837229893,7.93658821,186.26,186.19,7.93658821]
[1736837231591,7.93658821,186.26,186.23,2.6861]
[1736837231789,7.93658821,186.26,186.21,7.93658821]
[1736837232592,7.93658821,186.26,186.22,2.6863]
[1736837232799,7.93658821,186.26,186.21,7.93658821]
[1736837233596,10.62248821,186.26,186.19,7.93658821]
[1736837233796,7.93658821,186.24,186.19,7.93658821]
[1736837233994,7.93658821,186.22,186.12,3.57327629]
[1736837234297,7.93658821,186.22,186.16,7.93658821]
[1736837235899,7.93658821,186.22,186.18,2.687]
[1736837237702,7.93658821,186.22,186.19,2.6868]
[1736837240400,7.93658821,186.22,186.18,2.687]
[1736837245609,10.62308821,186.22,186.18,2.687]
[1736837245807,7.93658821,186.2,186.16,2.6872]
[1736837248308,7.93658821,186.18,186.16,2.6872]
[1736837248804,7.93658821,186.18,186.13,2.6876]
[1736837248999,7.93658821,186.18,186.12,11.5098645]
[1736837250105,10.62368821,186.18,186.14,2.6875]
[1736837251201,10.62368821,186.18,186.12,3.57327629]
[1736837251402,10.62368821,186.18,186.13,2.6877]
[1736837252201,7.93658821,186.18,186.13,2.6877]
[1736837252407,10.62388821,186.16,186.12,6.26107629]
[1736837253914,7.93658821,186.16,186.12,6.26107629]
[1736837254114,187.6447,186.22,186.12,11.5098645]
[1736837254309,7.93658821,186.2,186.14,7.93658821]
[1736837254613,195.58128821,186.22,186.16,7.93658821]
[1736837255206,195.58128821,186.22,186.19,2.6868]
[1736837256214,195.58128821,186.22,186.18,2.687]
[1736837258910,195.58128821,186.22,186.16,7.93658821]
[1736837259110,195.58128821,186.22,186.19,2.6868]
[1736837259314,12.70828821,186.22,186.19,2.6868]
[1736837261318,10.62278821,186.24,186.2,2.6867]
[1736837262713,7.93658821,186.22,186.19,2.6868]
[1736837263316,7.93658821,186.22,186.16,7.93658821]
[1736837263613,10.62298821,186.22,186.17,2.687]
[1736837266020,7.93658821,186.2,186.17,2.687]
[1736837267615,10.62348821,186.2,186.15,2.6874]
[1736837267816,7.93658821,186.18,186.15,2.6874]
[1736837268115,2.6874,186.15,186.11,2.6879]
[1736837268316,7.93658821,186.14,186.08,15.3834847]
[1736837268819,7.93658821,186.14,186.08,7.93658821]
[1736837269221,7.93658821,186.14,186.1,2.6881]
[1736837274922,7.93658821,186.14,186.08,7.93658821]
[1736837276119,7.93658821,186.14,186.1,2.688]
[1736837276627,7.93658821,186.14,186.08,7.93658821]
[1736837276819,7.93658821,186.14,186.11,2.688]
[1736837278123,7.93658821,186.14,186.1,2.6881]
[1736837278521,189.8996,186.2,186.08,7.93658821]
[1736837278724,7.93658821,186.15,186.11,2.688]
[1736837279518,7.93658821,186.15,186.12,2.6879]
[1736837281331,7.93658821,186.15,186.1,7.93658821]
[1736837281528,7.93658821,186.15,186.11,2.688]
[1736837287126,7.93658821,186.15,186.1,7.93658821]
[1736837287127,10.62398821,186.15,186.1,2.6881]
[1736837287729,7.93658821,186.15,186.12,2.6878]
[1736837291338,7.93658821,186.15,186.11,2.688]
[1736837291534,10.62408821,186.15,186.11,2.688]
[1736837293540,10.62408821,186.15,186.1,2.6881]
[1736837300945,7.93658821,186.11,186.07,2.6885]
[1736837302247,10.62468821,186.11,186.07,2.6885]
[1736837302548,10.62468821,186.11,186.04,34.57870026]
[1736837302549,7.93658821,186.11,186.04,34.57870026]
[1736837302845,7.93658821,186.09,186.05,2.6888]
[1736837304346,5.9493,186.14,186.09,2.6883]
[1736837304547,13.88588821,186.14,186.09,2.6883]
[1736837305342,2.6879,186.12,186.08,2.6884]
[1736837305548,7.93658821,186.12,186.05,7.93658821]
[1736837305844,7.93658821,186.1,186.04,34.57870026]
[1736837306144,7.93658821,186.1,186.03,7.93658821]
[1736837306342,7.93658821,186.08,186.02,7.44689649]
[1736837306542,7.93658821,186.08,186.02,7.93658821]
[1736837306739,2.6886,186.07,186.02,7.93658821]
[1736837307347,2.6886,186.07,186.02,10.62588821]
[1736837308545,7.93658821,186.08,186.02,7.93658821]
[1736837309838,7.93658821,186.06,186.02,7.93658821]
[1736837310148,7.93658821,186.08,186.02,7.93658821]
[1736837310549,2.6887,186.07,186.03,2.689]
[1736837311248,2.6887,186.07,186.02,10.62588821]
[1736837311448,10.62548821,186.06,186.0,7.93658821]
[1736837313251,10.62548821,186.06,186.01,2.6894]
[1736837315555,2.6889,186.05,186.01,2.6894]
[1736837315947,7.93658821,186.06,186.01,2.6894]
[1736837317155,10.62538821,186.06,186.01,2.6894]
[1736837319858,2.6889,186.05,186.01,2.6894]
[1736837321462,2.6889,186.05,186.0,7.93658821]
[1736837321660,2.6889,186.05,186.0,10.62618821]
[1736837321856,2.689,186.04,186.0,10.62618821]
[1736837322162,2.689,186.04,186.0,7.93658821]
[1736837322454,7.93658821,186.02,185.95,34.59563611]
[1736837322655,182.873,186.08,185.95,42.53222432]
[1736837322656,7.93658821,186.0,185.95,42.53222432]
[1736837322857,2.6899,185.99,185.95,42.53222432]
[1736837324156,10.62598821,186.02,185.97,10.62648821]
[1736837324665,1.639,186.03,185.97,7.93658821]
[1736837325165,4.3283,186.03,185.98,2.6899]
[1736837325462,7.93658821,186.02,185.98,2.6899]
[1736837325966,10.62588821,186.02,185.98,2.6899]
[1736837326560,2.6895,186.01,185.97,10.62658821]
[1736837326770,7.93658821,186.0,185.97,2.69]
[1736837328064,7.93658821,186.0,185.95,34.59563611]
[1736837328265,7.93658821,186.0,185.93,7.93658821]
[1736837328563,7.93658821,185.98,185.93,7.93658821]
[1736837329263,10.62648821,185.98,185.94,2.6904]
[1736837330567,2.69,185.97,185.92,2.6906]
[1736837330761,2.69,185.97,185.92,10.62718821]
[1736837335266,2.6902,185.96,185.91,2.6909]
[1736837335656,2.6902,185.96,185.92,7.93658821]
[1736837336566,2.6902,185.96,185.91,2.6909]
[1736837336768,2.6902,185.96,185.92,7.93658821]
[1736837337770,10.62678821,185.96,185.92,7.93658821]
[1736837338069,10.62678821,185.96,185.92,10.62728821]
[1736837340467,10.62678821,185.96,185.92,2.6907]
[1736837340667,2.6902,185.96,185.92,2.6907]
[1736837340870,1.558,186.01,185.94,7.93658821]
[1736837341067,7.93658821,186.01,185.96,7.93658821]
[1736837341870,7.93658821,186.01,185.91,1.5488]
[1736837342069,7.93658821,186.01,185.97,2.6899]
[1736837342672,10.62628821,185.99,185.93,7.93658821]
[1736837343475,10.62628821,185.99,185.95,2.6903]
[1736837344469,7.93658821,185.99,185.95,7.93658821]
[1736837344674,7.93658821,186.01,185.97,7.93658821]
[1736837345573,7.93658821,186.01,185.98,2.6898]
[1736837346174,7.93658821,186.03,185.97,7.93658821]
[1736837346478,3.3074,186.08,185.99,7.93658821]
[1736837346674,7.93658821,186.04,185.99,7.93658821]
[1736837347480,7.93658821,186.04,186.0,2.6896]
[1736837351683,10.62568821,186.04,186.0,2.6896]
[1736837353678,7.93658821,186.02,186.0,2.6896]
[1736837356287,7.93658821,186.04,185.99,7.93658821]
[1736837356481,7.93658821,186.06,185.99,7.93658821]
[1736837358092,7.93658821,186.06,186.02,2.6893]
[1736837358585,30.21207631,186.1,185.94,7.44689649]
[1736837358586,30.21207631,186.1,186.01,7.93658821]
[1736837358786,10.62478821,186.1,186.03,7.93658821]
[1736837359796,2.6884,186.09,186.03,7.93658821]
[1736837359987,7.93658821,186.08,186.03,7.93658821]
[1736837360193,7.93658821,186.08,186.01,7.93658821]
[1736837360595,7.93658821,186.06,186.01,7.93658821]
[1736837361194,7.93658821,186.06,186.02,2.6893]
[1736837361397,7.93658821,186.06,186.01,7.93658821]
[1736837361595,7.93658821,186.08,186.03,7.93658821]
[1736837361795,7.93658821,186.08,186.05,2.6889]
[1736837363699,7.93658821,186.1,186.03,7.93658821]
[1736837363898,7.93658821,186.1,186.05,7.93658821]
[1736837364699,7.93658821,186.1,186.06,2.6887]
[1736837364897,7.93658821,186.1,186.05,7.93658821]
[1736837365602,7.93658821,186.1,186.07,2.6885]
[1736837367399,7.93658821,186.1,186.05,2.6887]
[1736837367800,7.93658821,186.1,186.04,7.93658821]
[1736837369098,7.93658821,186.1,186.0,5.44]
[1736837369099,7.93658821,186.12,186.08,2.6884]
[1736837372403,10.62448821,186.12,186.08,2.6884]
[1736837374700,10.62478821,186.1,186.06,2.6887]
[1736837374906,7.93658821,186.08,186.06,2.6887]
[1736837376802,7.93658821,186.08,186.03,7.93658821]
[1736837377008,7.93658821,186.08,186.05,2.6888]
[1736837378008,10.62478821,186.1,186.05,2.6888]
[1736837378909,10.62478821,186.1,186.06,2.6887]
[1736837382108,7.93658821,186.1,186.06,2.6887]
[1736837386819,7.93658821,186.08,186.03,2.6892]
[1736837388217,7.93658821,186.06,186.03,2.6892]
[1736837388612,7.93658821,186.06,186.02,2.6893]
[1736837388820,10.62538821,186.06,186.02,2.6893]
[1736837389317,7.93658821,186.06,186.0,3.57551524]
[1736837389519,2.6889,186.05,186.0,6.26501524]
[1736837390620,10.62558821,186.04,186.0,6.26501524]
[1736837391214,7.93658821,186.04,186.0,6.26501524]
[1736837391716,7.93658821,186.04,186.01,2.6894]
[1736837395621,15.51778821,186.08,186.04,2.689]
[1736837396020,12.82918821,186.08,186.02,7.93658821]
[1736837396921,15.51758821,186.08,186.04,2.6889]
[1736837400927,15.51758821,186.08,186.02,7.93658821]
[1736837402127,15.51758821,186.08,186.04,2.6889]
[1736837403626,12.82918821,186.08,186.0,11.51210345]
[1736837403832,10.62528821,186.06,186.0,11.51210345]
[1736837404733,7.93658821,186.06,186.0,11.51210345]
[1736837404929,7.93658821,186.04,186.0,3.57551524]
[1736837406133,10.62568821,186.04,186.0,6.26501524]
[1736837408036,10.62568821,186.04,186.0,14.20160345]
[1736837409935,2.6888,186.06,186.02,2.6893]
[1736837410132,10.62538821,186.06,186.02,2.6893]
[1736837410328,7.93658821,186.06,186.02,7.93658821]
[1736837410535,12.82918821,186.08,186.02,7.93658821]
[1736837411035,15.51768821,186.08,186.03,2.6891]
[1736837412133,2.6886,186.07,186.03,2.6891]
[1736837413431,7.93658821,186.06,186.03,2.6891]
[1736837414933,7.93658821,186.06,186.01,7.93658821]
[1736837415242,7.93658821,186.06,186.04,2.689]
[1736837415836,2.688,186.12,186.05,7.93658821]
[1736837416035,10.62458821,186.12,186.05,7.93658821]
[1736837416236,10.62458821,186.12,186.07,7.93658821]
[1736837416841,2.688,186.12,186.08,2.6883]
[1736837419938,4.8694,186.16,186.07,7.93658821]
[1736837420139,7.93658821,186.16,186.09,7.93658821]
[1736837420342,7.93658821,186.16,186.11,7.93658821]
[1736837421142,7.93658821,186.16,186.13,2.6876]
[1736837423244,7.93658821,186.16,186.12,2.6878]
[1736837423443,7.93658821,186.14,186.07,7.93658821]
[1736837423643,7.93658821,186.12,186.07,7.93658821]
[1736837424645,7.93658821,186.12,186.07,10.62508821]
[1736837425838,10.62448821,186.12,186.07,7.93658821]
[1736837426140,10.62448821,186.12,186.08,2.6884]
[1736837426845,7.93658821,186.12,186.08,2.6884]
[1736837428242,7.93658821,186.12,186.07,7.93658821]
[1736837428748,7.93658821,186.14,186.09,7.93658821]
[1736837428940,10.62418821,186.14,186.09,10.62488821]
[1736837429141,7.93658821,186.12,186.09,2.6883]
[1736837429339,7.93658821,186.12,186.03,5.44]
[1736837429543,7.93658821,186.1,186.06,2.6886]
[1736837431454,2.688,186.11,186.06,2.6886]
[1736837431655,7.93658821,186.1,186.06,2.6886]
[1736837434754,7.93658821,186.1,186.04,7.93658821]
[1736837434953,7.93658821,186.1,186.0,5.22621524]
[1736837435158,7.93658821,186.08,186.03,10.62558821]
[1736837435457,7.93658821,186.08,186.03,2.689]
[1736837435858,7.93658821,186.08,186.03,7.93658821]